bitfinex/quotes_BTCUSD_20241130
["timestamp","ask_amount","ask_price","bid_price","bid_amount"]
[1732946283199,0.0002,97209.0,97208.0,0.11284521]
[1732946283343,0.0002,97209.0,97208.0,0.10284521]
[1732946283797,0.0012,97209.0,97208.0,0.10284521]
[1732946283950,0.0032,97209.0,97208.0,0.10284521]
[1732946284149,0.0002,97209.0,97208.0,0.10284521]
[1732946284564,0.0082,97209.0,97208.0,0.10384521]
[1732946284772,0.0052,97209.0,97208.0,0.10284521]
[1732946285189,0.0082,97209.0,97208.0,0.10384521]
[1732946285390,0.0082,97209.0,97208.0,0.10284521]
[1732946285603,0.134071,97209.0,97208.0,0.10284521]
[1732946285832,0.137071,97209.0,97208.0,0.10384521]
[1732946286636,0.137071,97209.0,97208.0,0.07490595]
[1732946286874,0.132071,97209.0,97208.0,0.07490595]
[1732946287287,0.138071,97209.0,97208.0,0.07490595]
[1732946287757,0.132071,97209.0,97208.0,0.07490595]
[1732946287993,0.126071,97209.0,97208.0,0.07390595]
[1732946288213,0.142071,97209.0,97208.0,0.07590595]
[1732946288427,0.133071,97209.0,97208.0,0.07490595]
[1732946288600,0.126071,97209.0,97208.0,0.07390595]
[1732946288815,0.135071,97209.0,97208.0,0.07490595]
[1732946289024,0.135071,97209.0,97208.0,0.001]
[1732946290652,0.142071,97209.0,97208.0,0.002]
[1732946294392,0.1429351,97209.0,97208.0,0.002]
[1732946294802,0.16328602,97209.0,97208.0,0.002]
[1732946298870,0.1429351,97209.0,97208.0,0.002]
[1732946302948,0.1429751,97209.0,97208.0,0.002]
[1732946304038,0.16319221,97209.0,97208.0,0.002]
[1732946304477,0.16319221,97209.0,97208.0,0.00963207]
[1732946304940,0.16323221,97209.0,97208.0,0.00963207]
[1732946306079,0.16323221,97209.0,97208.0,0.00963339]
[1732946306294,0.16323221,97209.0,97208.0,0.0113648]
[1732946308764,0.1430151,97209.0,97208.0,0.0113648]
[1732946309426,0.1430151,97209.0,97208.0,0.0037314]
[1732946311188,0.1360151,97209.0,97208.0,0.0027314]
[1732946311430,0.1270151,97209.0,97208.0,0.0017314]
[1732946311627,0.1360151,97209.0,97208.0,0.0017314]
[1732946312250,0.1450151,97209.0,97208.0,0.0017314]
[1732946313121,0.1330151,97209.0,97208.0,0.0027314]
[1732946313326,0.1420151,97209.0,97208.0,0.0027314]
[1732946313549,0.1360151,97209.0,97208.0,0.0017314]
[1732946313977,0.1450151,97209.0,97208.0,0.0017314]
[1732946314411,0.16610916,97209.0,97208.0,0.0017314]
[1732946314617,0.15710916,97209.0,97208.0,0.0017314]
[1732946315072,0.16610916,97209.0,97208.0,0.0017314]
[1732946315724,0.17510916,97209.0,97208.0,0.0017314]
[1732946316368,0.1540151,97209.0,97208.0,0.0017314]
[1732946316788,0.1450151,97209.0,97208.0,0.0017314]
[1732946317002,0.1540151,97209.0,97208.0,0.0027314]
[1732946318117,0.1581331,97209.0,97208.0,0.0027314]
[1732946318521,0.17848475,97209.0,97208.0,0.0027314]
[1732946323114,0.15548475,97209.0,97208.0,0.1297314]
[1732946323367,0.05261375,97209.0,97208.0,0.23257661]
[1732946323591,0.05261375,97209.0,97208.0,0.35544861]
[1732946323592,0.0322621,97209.0,97208.0,0.35544861]
[1732946323795,0.0002,97229.0,97218.0,0.0787]
[1732946324010,0.0002,97229.0,97221.0,0.10284521]
[1732946324425,0.205702,97228.0,97221.0,0.10284521]
[1732946324619,0.102853,97226.0,97221.0,0.10284521]
[1732946324827,0.0002,97229.0,97222.0,0.0483]
[1732946325051,0.0002,97229.0,97223.0,0.10284521]
[1732946325249,0.10305,97229.0,97223.0,0.10284521]
[1732946325470,0.0002,97229.0,97223.0,0.10284521]
[1732946325891,0.023,97227.0,97223.0,0.10284521]
[1732946326089,0.023,97224.0,97223.0,0.10284521]
[1732946326329,0.205902,97229.0,97228.0,0.122851]
[1732946326330,0.007,97229.0,97228.0,0.122851]
[1732946326561,0.205645,97255.0,97232.0,0.01]
[1732946326757,0.102824,97253.0,97238.0,0.10284521]
[1732946326982,0.102825,97252.0,97238.0,0.10284521]
[1732946327190,0.0988901,97252.0,97238.0,0.10284521]
[1732946327396,0.102827,97251.0,97238.0,0.10284521]
[1732946327688,0.00027869,97278.0,97238.0,0.10284521]
[1732946327884,0.205619,97267.0,97238.0,0.10284521]
[1732946328541,0.102839,97240.0,97238.0,0.10284521]
[1732946328880,0.00079625,97269.0,97238.0,0.10284521]
[1732946328881,0.023,97267.0,97238.0,0.10284521]
[1732946329268,0.102837,97242.0,97238.0,0.10284521]
[1732946329690,0.205659,97249.0,97238.0,0.10284521]
[1732946329691,0.102834,97244.0,97238.0,0.10284521]
[1732946329932,0.02040361,97239.0,97238.0,0.11184521]
[1732946330390,6e-05,97270.0,97251.0,0.0769]
[1732946330603,6e-05,97270.0,97252.0,0.10284521]
[1732946330842,0.10281,97267.0,97252.0,0.10284521]
[1732946331078,6e-05,97270.0,97252.0,0.10284521]
[1732946331330,0.00079625,97269.0,97253.0,0.102824]
[1732946331586,0.00079625,97269.0,97254.0,0.10284521]
[1732946331813,0.102808,97268.0,97254.0,0.10284521]
[1732946332266,0.02107221,97255.0,97254.0,0.10284521]
[1732946333335,0.02107221,97255.0,97254.0,0.10384521]
[1732946333561,0.12389421,97255.0,97254.0,0.10384521]
[1732946333742,0.02107221,97255.0,97254.0,0.10384521]
[1732946333941,0.20563,97262.0,97254.0,0.10284521]
[1732946334141,0.103822,97255.0,97254.0,0.10284521]
[1732946335944,0.126822,97255.0,97254.0,0.10284521]
[1732946336323,0.126822,97255.0,97235.0,0.0769]
[1732946336506,0.102841,97237.0,97236.0,0.10284521]
[1732946337897,0.10301977,97237.0,97236.0,0.10584521]
[1732946338272,0.10301977,97237.0,97236.0,0.10284521]
[1732946338611,0.10701977,97237.0,97236.0,0.10284521]
[1732946340939,0.13001977,97237.0,97236.0,0.10284521]
[1732946341176,0.15083336,97237.0,97236.0,0.10284521]
[1732946341499,0.14683336,97237.0,97236.0,0.10284521]
[1732946341913,0.15183336,97237.0,97236.0,0.10284521]
[1732946342130,0.102855,97224.0,97223.0,0.0017308]
[1732946342337,0.102855,97224.0,97223.0,0.10457601]
[1732946343546,0.103855,97224.0,97223.0,0.10457601]
[1732946343702,0.126855,97224.0,97223.0,0.10457601]
[1732946343923,0.126855,97224.0,97223.0,0.10386081]
[1732946344745,0.125855,97224.0,97223.0,0.10386081]
[1732946344945,0.127855,97224.0,97223.0,0.10386081]
[1732946345361,0.127855,97224.0,97223.0,0.0010156]
[1732946345586,0.129855,97224.0,97223.0,0.0010156]
[1732946346454,0.127855,97224.0,97223.0,0.0010156]
[1732946346661,0.125855,97224.0,97223.0,0.0010156]
[1732946347277,0.128855,97224.0,97223.0,0.0010156]
[1732946348121,0.133855,97224.0,97223.0,0.0010156]
[1732946349236,0.15478357,97224.0,97223.0,0.0010156]
[1732946349902,0.14678357,97224.0,97223.0,0.0010156]
[1732946350104,0.14678357,97224.0,97223.0,0.0100156]
[1732946350313,0.14778357,97224.0,97223.0,0.0100156]
[1732946351371,0.14878357,97224.0,97223.0,0.0190156]
[1732946352240,0.14378357,97224.0,97223.0,0.0190156]
[1732946353710,0.122855,97224.0,97223.0,0.0190156]
[1732946355788,0.002,97224.0,97223.0,0.12186081]
[1732946356639,0.001,97224.0,97223.0,0.11286081]
[1732946357038,0.005,97224.0,97223.0,0.11286081]
[1732946357568,0.001,97224.0,97223.0,0.11286081]
[1732946357936,0.005,97224.0,97223.0,0.11286081]
[1732946358150,0.004,97224.0,97223.0,0.10386081]
[1732946358370,0.004,97224.0,97223.0,0.11386081]
[1732946358562,0.006,97224.0,97223.0,0.11486081]
[1732946358887,0.02496201,97224.0,97223.0,0.11386081]
[1732946359139,0.02096201,97224.0,97223.0,0.11486081]
[1732946361945,0.205695,97231.0,97223.0,0.10386081]
[1732946362136,0.102854,97225.0,97224.0,0.10284521]
[1732946364020,0.107854,97225.0,97224.0,0.10284521]
[1732946364850,0.1087196,97225.0,97224.0,0.10284521]
[1732946365464,0.1107196,97225.0,97224.0,0.10384521]
[1732946366594,0.1057196,97225.0,97224.0,0.10384521]
[1732946366793,0.1087196,97225.0,97224.0,0.10284521]
[1732946367235,0.1107196,97225.0,97224.0,0.10384521]
[1732946368913,0.13109427,97225.0,97224.0,0.10384521]
[1732946370188,0.13109427,97225.0,97224.0,0.001]
[1732946371611,0.125855,97224.0,97223.0,0.0010156]
[1732946373182,0.132855,97224.0,97223.0,0.0020156]
[1732946373812,0.132855,97224.0,97223.0,0.0010156]
[1732946373813,0.125855,97224.0,97223.0,0.0010156]
[1732946375075,0.13547297,97224.0,97223.0,0.0010156]
[1732946375281,0.13547111,97224.0,97223.0,0.0060156]
[1732946375502,0.14447111,97224.0,97223.0,0.0070156]
[1732946375685,0.13547111,97224.0,97223.0,0.0010156]
[1732946375901,0.125855,97224.0,97223.0,0.0100156]
[1732946376100,0.204255,97224.0,97223.0,0.0190156]
[1732946377907,0.204255,97224.0,97223.0,0.00831932]
[1732946378773,0.22435124,97224.0,97223.0,0.00831932]
[1732946383651,0.204255,97224.0,97223.0,0.00831932]
[1732946388755,0.2244581,97224.0,97223.0,0.00831932]
[1732946389657,0.2244581,97224.0,97223.0,0.01005052]
[1732946390116,0.2253237,97224.0,97223.0,0.01005052]
[1732946393693,0.2051206,97224.0,97223.0,0.01005052]
[1732946396366,0.29240822,97224.0,97223.0,0.01005052]
[1732946396532,0.29240822,97224.0,97208.0,0.0017314]
[1732946396533,0.125871,97209.0,97208.0,0.0017314]
[1732946397899,0.125871,97209.0,97208.0,0.0057314]
[1732946398340,0.125871,97209.0,97208.0,0.0017314]
[1732946398777,0.126871,97209.0,97208.0,0.0107314]
[1732946399193,0.126871,97209.0,97208.0,0.0177314]
[1732946399194,0.127871,97209.0,97208.0,0.0177314]
[1732946399421,0.127871,97209.0,97208.0,0.0107314]
[1732946399636,0.127871,97209.0,97208.0,0.0177314]
[1732946399637,0.128871,97209.0,97208.0,0.0177314]
[1732946400055,0.127871,97209.0,97208.0,0.0087314]
[1732946400506,0.128871,97209.0,97208.0,0.0157314]
[1732946402218,0.14900822,97209.0,97208.0,0.0157314]
[1732946402879,0.20505564,97209.0,97208.0,0.0157314]
[1732946403293,0.128871,97209.0,97208.0,0.0157314]
[1732946406313,0.128871,97209.0,97208.0,0.0154314]
[1732946407187,0.102877,97203.0,97202.0,0.0017282]
[1732946407427,0.206577,97203.0,97202.0,0.0017282]
[1732946408414,0.20763656,97203.0,97202.0,0.0097282]
[1732946408660,0.102905,97177.0,97169.0,0.0819]
[1732946409218,0.125905,97177.0,97169.0,0.0819]
[1732946409429,0.125905,97177.0,97166.0,0.0494]
[1732946409636,0.102915,97167.0,97166.0,0.0494]
[1732946410931,0.10397452,97167.0,97166.0,0.0494]
[1732946411317,0.10297452,97167.0,97166.0,0.0494]
[1732946411521,0.10997452,97167.0,97166.0,0.0494]
[1732946412151,0.102919,97163.0,97162.0,0.0819]
[1732946412314,0.102919,97163.0,97162.0,0.18474521]
[1732946412794,0.102919,97163.0,97162.0,0.10284521]
[1732946413425,0.102924,97159.0,97158.0,0.0494]
[1732946413673,0.102924,97159.0,97158.0,0.15224521]
[1732946414804,0.109924,97159.0,97158.0,0.15224521]
[1732946416154,0.118924,97159.0,97158.0,0.15224521]
[1732946416401,0.111924,97159.0,97158.0,0.15224521]
[1732946416834,0.120924,97159.0,97158.0,0.15224521]
[1732946417063,0.102924,97159.0,97158.0,0.15224521]
[1732946417560,0.12465822,97159.0,97158.0,0.15224521]
[1732946418582,0.11565822,97159.0,97158.0,0.15224521]
[1732946418925,0.12465822,97159.0,97158.0,0.15224521]
[1732946421283,0.02173422,97159.0,97158.0,0.15224521]
[1732946421507,0.017,97159.0,97158.0,0.16224521]
[1732946421710,0.017,97159.0,97158.0,0.24414521]
[1732946423451,0.017,97159.0,97158.0,0.25414521]
[1732946423688,0.017,97159.0,97158.0,0.35707021]
[1732946424320,0.009,97159.0,97158.0,0.38831353]
[1732946424539,0.009,97159.0,97158.0,0.35707021]
[1732946424785,0.009,97159.0,97158.0,0.3888868]
[1732946424786,0.01,97159.0,97158.0,0.3888868]
[1732946425072,0.001,97159.0,97158.0,0.3906184]
[1732946425299,0.001,97159.0,97158.0,0.35880181]
[1732946425930,5.952e-05,97167.0,97166.0,0.01]
[1732946426137,5.952e-05,97167.0,97166.0,0.11284521]
[1732946426493,5.952e-05,97167.0,97166.0,0.10284521]
[1732946426494,0.10297452,97167.0,97166.0,0.10284521]
[1732946426922,0.10297452,97167.0,97166.0,0.11284521]
[1732946427327,0.10297452,97167.0,97166.0,0.10284521]
[1732946427762,0.10297452,97167.0,97166.0,0.11284521]
[1732946428162,0.10297452,97167.0,97166.0,0.10284521]
[1732946428565,0.10297452,97167.0,97166.0,0.11284521]
[1732946428982,0.10597452,97167.0,97166.0,0.11284521]
[1732946429443,0.10597452,97167.0,97166.0,0.10284521]
[1732946429633,0.10597452,97167.0,97166.0,0.11284521]
[1732946429634,0.10997452,97167.0,97166.0,0.11284521]
[1732946429825,0.10997452,97167.0,97166.0,0.10284521]
[1732946429973,0.10997452,97167.0,97166.0,0.11284521]
[1732946430558,0.10997452,97167.0,97166.0,0.10284521]
[1732946431254,0.12697527,97167.0,97166.0,0.10284521]
[1732946431814,0.102924,97159.0,97158.0,0.0017316]
[1732946432203,0.102924,97159.0,97158.0,0.10457681]
[1732946433406,0.115924,97159.0,97158.0,0.10457681]
[1732946434048,0.115924,97159.0,97158.0,0.0017316]
[1732946435255,0.108924,97159.0,97158.0,0.0017316]
[1732946435662,0.111924,97159.0,97158.0,0.0017316]
[1732946436120,0.120924,97159.0,97158.0,0.0017316]
[1732946436330,0.111924,97159.0,97158.0,0.0017316]
[1732946436512,0.102924,97159.0,97158.0,0.0017316]
[1732946436754,0.120924,97159.0,97158.0,0.0017316]
[1732946438930,0.14144614,97159.0,97158.0,0.0017316]
[1732946441958,0.13644614,97159.0,97158.0,0.0017316]
[1732946442389,0.15944614,97159.0,97158.0,0.0017316]
[1732946443454,0.15936381,97159.0,97158.0,0.0017316]
[1732946443671,0.13884167,97159.0,97158.0,0.0017316]
[1732946447069,0.22134167,97159.0,97158.0,0.0017316]
[1732946449633,0.24002543,97159.0,97158.0,0.0017316]
[1732946450259,0.34287064,97159.0,97158.0,0.0017316]
[1732946450684,0.34287064,97159.0,97158.0,6e-07]
[1732946452011,0.32487064,97159.0,97158.0,6e-07]
[1732946452447,0.32687064,97159.0,97158.0,6e-07]
[1732946452676,0.32587064,97159.0,97158.0,6e-07]
[1732946452875,0.32487064,97159.0,97158.0,6e-07]
[1732946453281,0.32687064,97159.0,97158.0,6e-07]
[1732946453703,0.30542043,97159.0,97158.0,6e-07]
[1732946454109,0.30642043,97159.0,97158.0,6e-07]
[1732946454870,0.30542043,97159.0,97158.0,6e-07]
[1732946455069,0.30642043,97159.0,97158.0,6e-07]
[1732946455278,0.30542043,97159.0,97158.0,6e-07]
[1732946455511,0.30642043,97159.0,97158.0,6e-07]
[1732946455978,0.30542043,97159.0,97158.0,6e-07]
[1732946456409,0.35342043,97159.0,97158.0,6e-07]
[1732946458448,0.35242043,97159.0,97158.0,6e-07]
[1732946458667,0.35142043,97159.0,97158.0,6e-07]
[1732946458893,0.35342043,97159.0,97158.0,6e-07]
[1732946459339,0.37180583,97159.0,97158.0,6e-07]
[1732946459554,0.37280583,97159.0,97158.0,6e-07]
[1732946459788,0.37380583,97159.0,97158.0,6e-07]
[1732946460228,0.37280583,97159.0,97158.0,6e-07]
[1732946460856,0.37367163,97159.0,97158.0,6e-07]
[1732946461924,0.37467163,97159.0,97158.0,6e-07]
[1732946462339,0.22482642,97159.0,97158.0,6e-07]
[1732946462540,0.14232642,97159.0,97158.0,6e-07]
[1732946463876,0.12194102,97159.0,97158.0,6e-07]
[1732946464741,0.12094102,97159.0,97158.0,6e-07]
[1732946464974,0.11994102,97159.0,97158.0,6e-07]
[1732946465177,0.12094102,97159.0,97158.0,0.0030006]
[1732946465302,0.12194102,97159.0,97158.0,0.0040006]
[1732946465504,0.12094102,97159.0,97158.0,0.0030006]
[1732946465723,0.11994102,97159.0,97158.0,6e-07]
[1732946465920,0.12094102,97159.0,97158.0,0.0090006]
[1732946466136,0.12194102,97159.0,97158.0,0.0160006]
[1732946469069,0.125946,97138.0,97137.0,0.076]
[1732946471166,0.126946,97138.0,97137.0,0.076]
[1732946471588,0.127946,97138.0,97137.0,0.076]
[1732946471872,0.127946,97138.0,97137.0,0.17884521]
[1732946472352,0.02274538,97138.0,97137.0,0.22434521]
[1732946472536,0.02274538,97138.0,97137.0,0.23434521]
[1732946473237,0.02274538,97138.0,97137.0,0.23521101]
[1732946473819,0.02174538,97138.0,97137.0,0.23521101]
[1732946474217,0.03074538,97138.0,97137.0,0.23521101]
[1732946474416,0.02974538,97138.0,97137.0,0.23521101]
[1732946474584,0.13269138,97138.0,97137.0,0.20111339]
[1732946475059,0.13269138,97138.0,97137.0,0.16311339]
[1732946475291,0.14169138,97138.0,97137.0,0.14921101]
[1732946475722,0.143946,97138.0,97137.0,0.0008658]
[1732946476676,0.16430415,97138.0,97137.0,0.0008658]
[1732946476885,0.15530415,97138.0,97137.0,0.0008658]
[1732946477149,0.135946,97138.0,97137.0,0.0008658]
[1732946477941,0.134946,97138.0,97137.0,0.0008658]
[1732946478156,0.125946,97138.0,97137.0,0.0008658]
[1732946478424,0.126946,97138.0,97137.0,0.0008658]
[1732946478633,0.127946,97138.0,97137.0,0.0008658]
[1732946478866,0.126946,97138.0,97137.0,0.0008658]
[1732946479090,0.127946,97138.0,97137.0,0.0008658]
[1732946480228,0.31078335,97208.0,97137.0,0.0008658]
[1732946480229,0.102933,97150.0,97149.0,0.01]
[1732946480469,0.0462,97194.0,97149.0,0.01]
[1732946480470,0.1258,97194.0,97153.0,0.01]
[1732946480674,0.102913,97170.0,97157.0,0.01]
[1732946480884,0.205817,97174.0,97164.0,0.01]
[1732946481115,0.205817,97174.0,97165.0,0.10284521]
[1732946481339,0.102916,97166.0,97165.0,0.10284521]
[1732946482654,0.111916,97166.0,97165.0,0.10284521]
[1732946482862,0.120916,97166.0,97165.0,0.10384521]
[1732946483934,0.14100725,97166.0,97165.0,0.10384521]
[1732946485697,0.14100725,97166.0,97165.0,0.001]
[1732946488906,0.120916,97166.0,97165.0,0.001]
[1732946489124,0.120916,97166.0,97165.0,0.10384521]
[1732946491608,0.120916,97166.0,97165.0,0.001]
[1732946494021,0.14168005,97166.0,97165.0,0.001]
[1732946496828,0.16468005,97166.0,97165.0,0.001]
[1732946497523,0.16641205,97166.0,97165.0,0.001]
[1732946499049,0.102924,97159.0,97158.0,0.0008658]
[1732946499201,0.125924,97159.0,97158.0,0.0008658]
[1732946501523,0.125924,97159.0,97158.0,0.0018658]
[1732946501524,0.134924,97159.0,97158.0,0.0018658]
[1732946501760,0.135924,97159.0,97158.0,0.0028658]
[1732946501945,0.126924,97159.0,97158.0,0.0018658]
[1732946502327,0.205724,97159.0,97158.0,8e-07]
[1732946502529,0.204724,97159.0,97158.0,8e-07]
[1732946502735,0.205724,97159.0,97158.0,8e-07]
[1732946503111,0.355724,97159.0,97158.0,8e-07]
[1732946503582,0.102946,97138.0,97126.0,0.0017306]
[1732946503697,0.125946,97138.0,97126.0,0.0017306]
[1732946504747,0.103946,97138.0,97137.0,0.0018658]
[1732946504955,0.1253924,97138.0,97137.0,0.0018658]
[1732946506200,0.1253924,97138.0,97137.0,0.10471101]
[1732946506400,0.0224464,97138.0,97137.0,0.23341101]
[1732946506607,0.0224464,97138.0,97137.0,0.25341101]
[1732946507392,0.0214464,97138.0,97137.0,0.25241101]
[1732946507593,0.0304464,97138.0,97137.0,0.25241101]
[1732946507805,0.0294464,97138.0,97137.0,0.25241101]
[1732946508040,0.0294464,97138.0,97137.0,0.25341101]
[1732946508041,0.0384464,97138.0,97137.0,0.25341101]
[1732946508203,0.0294464,97138.0,97137.0,0.25341101]
[1732946508383,0.0384464,97138.0,97137.0,0.25341101]
[1732946509065,0.0384464,97138.0,97137.0,0.24341101]
[1732946509250,0.120946,97138.0,97137.0,0.24341101]
[1732946509700,0.120946,97138.0,97137.0,0.23341101]
[1732946509977,0.120946,97138.0,97137.0,0.24341101]
[1732946510176,0.120946,97138.0,97137.0,0.23341101]
[1732946510584,0.120946,97138.0,97137.0,0.15041101]
[1732946510809,0.120946,97138.0,97137.0,0.10471101]
[1732946516564,0.14139541,97138.0,97137.0,0.10471101]
[1732946517327,0.21619002,97138.0,97137.0,0.0018658]
[1732946517520,0.14019002,97138.0,97137.0,0.0018658]
[1732946518323,0.13239541,97138.0,97137.0,0.0008658]
[1732946518537,0.13339541,97138.0,97137.0,0.0098658]
[1732946518982,0.112946,97138.0,97137.0,0.0008658]
[1732946519199,0.113946,97138.0,97137.0,0.0058658]
[1732946519399,0.104946,97138.0,97137.0,0.0058658]
[1732946519822,0.104946,97138.0,97137.0,0.0068658]
[1732946520235,0.104946,97138.0,97137.0,0.0058658]
[1732946520663,0.107946,97138.0,97137.0,0.0058658]
[1732946520925,0.105946,97138.0,97137.0,0.0008658]
[1732946521122,0.102946,97138.0,97137.0,0.0008658]
[1732946521350,0.103946,97138.0,97137.0,0.0038658]
[1732946521613,0.106946,97138.0,97137.0,0.0038658]
[1732946522017,0.105946,97138.0,97137.0,0.0008658]
[1732946522438,0.106946,97138.0,97137.0,0.0038658]
[1732946522638,0.103946,97138.0,97137.0,0.0038658]
[1732946523067,0.104946,97138.0,97137.0,0.11571101]
[1732946523930,0.1240829,97138.0,97137.0,0.11271101]
[1732946524174,0.1230829,97138.0,97137.0,0.10371101]
[1732946524390,0.1240829,97138.0,97137.0,0.11271101]
[1732946524644,0.1250829,97138.0,97137.0,0.11271101]
[1732946526549,0.0221369,97138.0,97137.0,0.11271101]
[1732946527182,0.0221369,97138.0,97137.0,0.12271101]
[1732946527853,0.0221369,97138.0,97137.0,0.13271101]
[1732946528265,0.0211369,97138.0,97137.0,0.13271101]
[1732946528500,0.0221369,97138.0,97137.0,0.13371101]
[1732946528724,0.0211369,97138.0,97137.0,0.13271101]
[1732946528977,0.0201369,97138.0,97137.0,0.12371101]
[1732946529209,0.013,97138.0,97137.0,0.12371101]
[1732946529414,0.004,97138.0,97137.0,0.12371101]
[1732946529851,0.30365039,97147.0,97137.0,0.12371101]
[1732946529852,0.40658639,97147.0,97146.0,0.01]
[1732946530078,0.308811,97147.0,97146.0,0.11284521]
[1732946531643,0.317811,97147.0,97146.0,0.11384521]
[1732946531887,0.317811,97147.0,97146.0,0.10384521]
[1732946532115,0.317811,97147.0,97146.0,0.11384521]
[1732946532370,0.326811,97147.0,97146.0,0.11484521]
[1732946532605,0.328543,97147.0,97146.0,0.11484521]
[1732946532834,0.328543,97147.0,97146.0,0.10484521]
[1732946533270,0.328543,97147.0,97146.0,0.002]
[1732946534071,0.37251582,97147.0,97146.0,0.002]
[1732946535346,0.102946,97138.0,97137.0,0.0008658]
[1732946535607,0.102946,97138.0,97137.0,0.10371101]
[1732946537831,0.103946,97138.0,97137.0,0.10371101]
[1732946538096,0.102946,97138.0,97137.0,0.10371101]
[1732946538313,0.111946,97138.0,97137.0,0.10371101]
[1732946538520,0.120946,97138.0,97137.0,0.10371101]
[1732946539144,0.111946,97138.0,97137.0,0.10371101]
[1732946539325,0.112946,97138.0,97137.0,0.10371101]
[1732946540005,0.111946,97138.0,97137.0,0.10371101]
[1732946540213,0.120946,97138.0,97137.0,0.10371101]
[1732946541013,0.111946,97138.0,97137.0,0.10371101]
[1732946541403,0.102946,97138.0,97137.0,0.10371101]
[1732946541595,0.103946,97138.0,97137.0,0.10471101]
[1732946541796,0.105946,97138.0,97137.0,0.10471101]
[1732946542021,0.104946,97138.0,97137.0,0.10371101]
[1732946542222,0.111946,97138.0,97137.0,0.10371101]
[1732946542676,0.120946,97138.0,97137.0,0.10471101]
[1732946543542,0.018,97138.0,97137.0,0.12471101]
[1732946543761,0.018,97138.0,97137.0,0.25301101]
[1732946545897,0.120946,97138.0,97137.0,0.12471101]
[1732946546151,0.14204715,97138.0,97137.0,0.12471101]
[1732946546318,0.03910115,97138.0,97137.0,0.12471101]
[1732946546984,0.14204715,97138.0,97137.0,0.12471101]
[1732946547550,0.03910115,97138.0,97137.0,0.12471101]
[1732946548008,0.14204715,97138.0,97137.0,0.12471101]
[1732946548971,0.120946,97138.0,97137.0,0.11471101]
[1732946549177,0.120946,97138.0,97137.0,0.10471101]
[1732946549810,0.120946,97138.0,97137.0,0.11471101]
[1732946551550,0.120946,97138.0,97137.0,0.10471101]
[1732946551941,0.120946,97138.0,97137.0,0.11471101]
[1732946552107,0.120946,97138.0,97137.0,0.10471101]
[1732946552400,0.120946,97138.0,97137.0,0.11471101]
[1732946553857,0.14145312,97138.0,97137.0,0.11471101]
[1732946555233,0.14145312,97138.0,97137.0,0.10471101]
[1732946555428,0.14145312,97138.0,97137.0,0.0018658]
[1732946556915,0.22265312,97138.0,97137.0,0.0018658]
[1732946557128,0.24565312,97138.0,97137.0,0.0018658]
[1732946557335,0.29215312,97138.0,97137.0,0.0018658]
[1732946557750,0.271646,97138.0,97137.0,0.0018658]
[1732946557960,0.262646,97138.0,97137.0,0.0008658]
[1732946558213,0.253646,97138.0,97137.0,0.0008658]
[1732946558427,0.255646,97138.0,97137.0,0.0018658]
[1732946558608,0.256646,97138.0,97137.0,0.0018658]
[1732946559490,0.254646,97138.0,97137.0,0.0018658]
[1732946560967,0.258646,97138.0,97137.0,0.0008658]
[1732946561175,0.259646,97138.0,97137.0,0.0008658]
[1732946561599,0.253646,97138.0,97137.0,0.0008658]
[1732946562019,0.255646,97138.0,97137.0,0.0008658]
[1732946563864,0.254646,97138.0,97137.0,0.0008658]
[1732946564064,0.255646,97138.0,97137.0,0.0008658]
[1732946564273,0.27548797,97138.0,97137.0,0.0008658]
[1732946564703,0.27548797,97138.0,97137.0,0.0018658]
[1732946564897,0.27648797,97138.0,97137.0,0.0008658]
[1732946565152,0.27648797,97138.0,97137.0,0.0018658]
[1732946565739,0.27748797,97138.0,97137.0,0.0018658]
[1732946566011,0.27548797,97138.0,97137.0,0.0008658]
[1732946566848,0.27448797,97138.0,97137.0,0.0008658]
[1732946567276,0.27548797,97138.0,97137.0,0.0018658]
[1732946567517,0.27648797,97138.0,97137.0,0.0018658]
[1732946567969,0.27721997,97138.0,97137.0,0.0018658]
[1732946568193,0.27621997,97138.0,97137.0,0.0008658]
[1732946568836,0.27721997,97138.0,97137.0,0.0008658]
[1732946569056,0.27821997,97138.0,97137.0,0.0018658]
[1732946569272,0.257378,97138.0,97137.0,0.0018658]
[1732946569962,0.256378,97138.0,97137.0,0.0018658]
[1732946570375,0.255378,97138.0,97137.0,0.0008658]
[1732946570812,0.255378,97138.0,97137.0,0.0018658]
[1732946570813,0.257378,97138.0,97137.0,0.0018658]
[1732946571022,0.257378,97138.0,97137.0,0.0008658]
[1732946571452,0.257378,97138.0,97137.0,0.0018658]
[1732946571895,0.258378,97138.0,97137.0,0.0028658]
[1732946572131,0.257378,97138.0,97137.0,0.0008658]
[1732946573002,0.256378,97138.0,97137.0,0.0008658]
[1732946573215,0.257378,97138.0,97137.0,0.0008658]
[1732946574074,0.258378,97138.0,97137.0,0.0018658]
[1732946576077,0.257378,97138.0,97137.0,0.0018658]
[1732946576290,0.258378,97138.0,97137.0,0.0018658]
[1732946576702,0.257378,97138.0,97137.0,0.0018658]
[1732946577145,0.30816288,97138.0,97137.0,0.0008658]
[1732946577578,0.30916288,97138.0,97137.0,0.0018658]
[1732946577823,0.32930119,97138.0,97137.0,0.0018658]
[1732946578019,0.33030119,97138.0,97137.0,0.0028658]
[1732946578897,0.32830119,97138.0,97137.0,0.0008658]
[1732946579108,0.30816288,97138.0,97137.0,0.0018658]
[1732946579321,0.30916288,97138.0,97137.0,0.0018658]
[1732946579548,0.26266288,97138.0,97137.0,0.0018658]
[1732946579772,0.15871688,97138.0,97125.0,7.2e-05]
[1732946579990,0.125959,97126.0,97125.0,7.2e-05]
[1732946580177,0.17805251,97126.0,97125.0,7.2e-05]
[1732946581277,0.17805251,97126.0,97125.0,0.00166921]
[1732946581504,0.17905251,97126.0,97125.0,0.00166921]
[1732946581747,0.15605251,97126.0,97125.0,0.00166921]
[1732946582692,0.15705251,97126.0,97125.0,0.00166921]
[1732946586365,0.18005251,97126.0,97125.0,0.00166921]
[1732946591233,0.18178471,97126.0,97125.0,0.00166921]
[1732946593965,0.07882571,97126.0,97125.0,0.11451442]
[1732946594170,0.07647024,97126.0,97125.0,0.12451442]
[1732946594589,0.17942924,97126.0,97125.0,0.11451442]
[1732946595081,0.17742924,97126.0,97125.0,0.10351442]
[1732946595485,0.17842924,97126.0,97125.0,0.10351442]
[1732946596658,0.17742924,97126.0,97125.0,0.10351442]
[1732946597114,0.18642924,97126.0,97125.0,0.10451442]
[1732946597342,0.18642924,97126.0,97125.0,0.10351442]
[1732946597561,0.19542924,97126.0,97125.0,0.10451442]
[1732946597827,0.18642924,97126.0,97125.0,0.10451442]